Workbook

Sheet Лист1
A1: Школа | C1: МОУ "СШ №16" Волгоград | F1: Утвердил: | G1: должность | H1: Директор ООО "Виво Маркет"
A2: Типовое примерное меню приготавливаемых блюд | G2: фамилия | H2: Тюрина К.В.
A3: Возрастная категория | E3: 7-11 лет | G3: дата | H3: 13 | I3: 10 | J3: 2025
H4: день | I4: месяц | J4: год
A5: Неделя | B5: День недели | C5: Прием пищи | D5: Раздел меню | E5: Блюда | F5: Вес блюда, г | G5: Белки | H5: Жиры | I5: Углеводы | J5: Калорийность | K5: № рецептуры | L5: Цена
A6: 1 | B6: 1 | C6: Завтрак | D6: гор.блюдо | E6: Каша молочная из риса и пшена дружба с маслом | F6: 200 | G6: 4.18 | H6: 3.56 | I6: 22.76 | J6: 139.8 | K6: №103 | L6: 124.66
D7: гор.блюдо | E7: Блинчики с молоком цельным сгущенным с сахаром | F7: 90 | G7: 8.49 | H7: 12.39 | I7: 30.41 | J7: 267.11 | K7: №387
D8: гор.напиток | E8: Чай с сахаром | F8: 200 | G8: 0.1 | H8: 0.03 | I8: 10.67 | J8: 42.57 | K8: №302
D9: хлеб | E9: Хлеб пшеничный | F9: 40 | G9: 3.16 | H9: 0.4 | I9: 19.32 | J9: 94 | K9: №6
D10: фрукты
D13: итого | F13: =SUM(F6:F12) -> 530 | G13: =SUM(G6:G12) -> 15.93 | H13: 16.38 | I13: 83.16 | J13: 543.48 | L13: =SUM(L6:L12) -> 124.66
A14: =A6 -> 1 | B14: =B6 -> 1 | C14: Обед | D14: закуска
D15: 1 блюдо
D16: 2 блюдо
D17: гарнир
D18: напиток
D19: хлеб бел.
D20: хлеб черн.
D23: итого | F23: =SUM(F14:F22) -> 0 | G23: =SUM(G14:G22) -> 0 | H23: 0 | I23: 0 | J23: 0 | L23: =SUM(L14:L22) -> 0
A24: =A6 -> 1 | B24: =B6 -> 1 | C24: Итого за день: | F24: =F13+F23 -> 530 | G24: =G13+G23 -> 15.93 | H24: 16.38 | I24: 83.16 | J24: 543.48 | L24: =L13+L23 -> 124.66
A25: 1 | B25: 2 | C25: Завтрак | D25: гор.блюдо | E25: Котлета домашняя | F25: 90 | G25: 9.83 | H25: 13.25 | I25: 12.2 | J25: 207.37 | K25: №896 | L25: 124.66
D26: гор.блюдо | E26: Макаронные изделия отварные | F26: 160 | G26: 5.94 | H26: 3.02 | I26: 28.13 | J26: 163.46 | K26: №129
D27: гор.напиток | E27: Чай с сахаром и лимоном | F27: 200 | G27: 0.15 | H27: 0.04 | I27: 10.82 | J27: 44.22 | K27: №301
D28: хлеб | E28: Хлеб пшеничный | F28: 50 | G28: 3.83 | H28: 0.49 | I28: 23.43 | J28: 113.98 | K28: №6
D29: фрукты
D32: итого | F32: =SUM(F25:F31) -> 500 | G32: =SUM(G25:G31) -> 19.75 | H32: 16.8 | I32: 74.58 | J32: 529.03 | L32: 124.66
A33: =A25 -> 1 | B33: =B25 -> 2 | C33: Обед | D33: закуска
D34: 1 блюдо
D35: 2 блюдо
D36: гарнир
D37: напиток
D38: хлеб бел.
D39: хлеб черн.
D42: итого | F42: =SUM(F33:F41) -> 0 | G42: =SUM(G33:G41) -> 0 | H42: 0 | I42: 0 | J42: 0 | L42: 0
A43: =A25 -> 1 | B43: =B25 -> 2 | C43: Итого за день: | F43: =F32+F42 -> 500 | G43: =G32+G42 -> 19.75 | H43: 16.8 | I43: 74.58 | J43: 529.03 | L43: 124.66
A44: 1 | B44: 3 | C44: Завтрак | D44: гор.блюдо | E44: Плов из птицы | F44: 200 | G44: 17.32 | H44: 19.54 | I44: 41.11 | J44: 409.58 | K44: №67 | L44: 124.66
D45: закуска | E45: Огурец соленый | F45: 100 | G45: 0.8 | H45: 0.1 | I45: 1.7 | J45: 10.9 | K45: №4
D46: гор.напиток | E46: Чай с сахаром каркаде | F46: 200 | G46: 0.01 | H46: 0 | I46: 10.71 | J46: 42.81 | K46: №241
D47: хлеб | E47: Хлеб пшеничный | F47: 50 | G47: 3.83 | H47: 0.49 | I47: 23.43 | J47: 113.98 | K47: №6
D48: фрукты
D51: итого | F51: =SUM(F44:F50) -> 550 | G51: =SUM(G44:G50) -> 21.96 | H51: 20.13 | I51: 76.95 | J51: 577.27 | L51: 124.66
A52: =A44 -> 1 | B52: =B44 -> 3 | C52: Обед | D52: закуска
D53: 1 блюдо
D54: 2 блюдо
D55: гарнир
D56: напиток
D57: хлеб бел.
D58: хлеб черн.
D61: итого | F61: =SUM(F52:F60) -> 0 | G61: =SUM(G52:G60) -> 0 | H61: 0 | I61: 0 | J61: 0 | L61: 0
A62: =A44 -> 1 | B62: =B44 -> 3 | C62: Итого за день: | F62: =F51+F61 -> 550 | G62: =G51+G61 -> 21.96 | H62: 20.13 | I62: 76.95 | J62: 577.27 | L62: 124.66
A63: 1 | B63: 4 | C63: Завтрак | D63: гор.блюдо | E63: Каша гречневая молочная с маслом | F63: 200 | G63: 9.36 | H63: 11.39 | I63: 26.14 | J63: 244.51 | K63: №515 | L63: 124.66
D64: конд.изд | E64: Печенье | F64: 20 | G64: 1.16 | H64: 3.69 | I64: 8.38 | J64: 71.37 | K64: №473
D65: гор.напиток | E65: Чай с сахаром | F65: 200 | G65: 0.1 | H65: 0.03 | I65: 10.67 | J65: 42.57 | K65: №302
D66: хлеб | E66: Хлеб пшеничный | F66: 50 | G66: 3.83 | H66: 0.49 | I66: 23.43 | J66: 113.98 | K66: №6
D67: фрукты | E67: Яблоко | F67: 180 | G67: 0.7 | H67: 0.7 | I67: 17.11 | J67: 82.06 | K67: №338
D70: итого | F70: =SUM(F63:F69) -> 650 | G70: =SUM(G63:G69) -> 15.15 | H70: 16.3 | I70: 85.73 | J70: 554.49 | L70: 124.66
A71: =A63 -> 1 | B71: =B63 -> 4 | C71: Обед | D71: закуска
D72: 1 блюдо
D73: 2 блюдо
D74: гарнир
D75: напиток
D76: хлеб бел.
D77: хлеб черн.
D80: итого | F80: =SUM(F71:F79) -> 0 | G80: =SUM(G71:G79) -> 0 | H80: 0 | I80: 0 | J80: 0 | L80: 0
A81: =A63 -> 1 | B81: =B63 -> 4 | C81: Итого за день: | F81: =F70+F80 -> 650 | G81: =G70+G80 -> 15.15 | H81: 16.3 | I81: 85.73 | J81: 554.49 | L81: 124.66
A82: 1 | B82: 5 | C82: Завтрак | D82: гор.блюдо | E82: Гречка по-купечески с филе куриным | F82: 150 | G82: 10.17 | H82: 11.92 | I82: 24.42 | J82: 245.64 | K82: №468 | L82: 124.66
D83: гор.блюдо | E83: Скрэмбл | F83: 60 | G83: 5.12 | H83: 7.51 | I83: 1.03 | J83: 92.19 | K83: №925
D84: гор.напиток | E84: Чай с сахаром и лимоном | F84: 200 | G84: 0.15 | H84: 0.04 | I84: 10.82 | J84: 44.22 | K84: №301
D85: хлеб | E85: Хлеб пшеничный | F85: 40 | G85: 3.16 | H85: 0.4 | I85: 19.32 | J85: 94 | K85: №6
D86: фрукты
D87: закуска | E87: Свекла отварная | F87: 100 | G87: 1.46 | H87: 0.1 | I87: 8.54 | J87: 40.9 | K87: №5
D89: итого | F89: =SUM(F82:F88) -> 550 | G89: =SUM(G82:G88) -> 20.06 | H89: 19.97 | I89: 64.13 | J89: 516.95 | L89: 124.66
A90: =A82 -> 1 | B90: =B82 -> 5 | C90: Обед | D90: закуска
D91: 1 блюдо
D92: 2 блюдо
D93: гарнир
D94: напиток
D95: хлеб бел.
D96: хлеб черн.
D99: итого | F99: =SUM(F90:F98) -> 0 | G99: =SUM(G90:G98) -> 0 | H99: 0 | I99: 0 | J99: 0 | L99: 0
A100: =A82 -> 1 | B100: =B82 -> 5 | C100: Итого за день: | F100: =F89+F99 -> 550 | G100: =G89+G99 -> 20.06 | H100: 19.97 | I100: 64.13 | J100: 516.95 | L100: 124.66
A101: 1 | B101: 6 | C101: Завтрак | D101: гор.блюдо
D103: гор.напиток
D104: хлеб
D105: фрукты
D108: итого | F108: =SUM(F101:F107) -> 0 | G108: =SUM(G101:G107) -> 0 | H108: 0 | I108: 0 | J108: 0 | L108: =SUM(L101:L107) -> 0
A109: =A101 -> 1 | B109: =B101 -> 6 | C109: Обед | D109: закуска
D110: 1 блюдо
D111: 2 блюдо
D112: гарнир
D113: напиток
D114: хлеб бел.
D115: хлеб черн.
D118: итого | F118: =SUM(F109:F117) -> 0 | G118: =SUM(G109:G117) -> 0 | H118: 0 | I118: 0 | J118: 0 | L118: =SUM(L109:L117) -> 0
A119: =A101 -> 1 | B119: =B101 -> 6 | C119: Итого за день: | F119: =F108+F118 -> 0 | G119: =G108+G118 -> 0 | H119: 0 | I119: 0 | J119: 0 | L119: =L108+L118 -> 0
A120: 2 | B120: 1 | C120: Завтрак | D120: гор.блюдо | E120: Котлеты рубленные из птицы | F120: 90 | G120: 9.68 | H120: 12.93 | I120: 9.56 | J120: 193.33 | K120: №62 | L120: 124.66
D121: гор.блюдо | E121: Макаронные изделия отварные | F121: 150 | G121: 5.56 | H121: 2.91 | I121: 25.87 | J121: 151.91 | K121: №129
D122: гор.напиток | E122: Чай с сахаром | F122: 200 | G122: 0.1 | H122: 0.03 | I122: 10.67 | J122: 42.57 | K122: №302
D123: хлеб | E123: Хлеб пшеничный | F123: 60 | G123: 4.74 | H123: 0.6 | I123: 28.98 | J123: 141 | K123: №6
D124: фрукты
D127: итого | F127: =SUM(F120:F126) -> 500 | G127: =SUM(G120:G126) -> 20.08 | H127: 16.47 | I127: 75.08 | J127: 528.81 | L127: =SUM(L120:L126) -> 124.66
A128: =A120 -> 2 | B128: =B120 -> 1 | C128: Обед | D128: закуска
D129: 1 блюдо
D130: 2 блюдо
D131: гарнир
D132: напиток
D133: хлеб бел.
D134: хлеб черн.
D137: итого | F137: =SUM(F128:F136) -> 0 | G137: =SUM(G128:G136) -> 0 | H137: 0 | I137: 0 | J137: 0 | L137: =SUM(L128:L136) -> 0
A138: =A120 -> 2 | B138: =B120 -> 1 | C138: Итого за день: | F138: =F127+F137 -> 500 | G138: =G127+G137 -> 20.08 | H138: 16.47 | I138: 75.08 | J138: 528.81 | L138: 124.66
A139: 2 | B139: 2 | C139: Завтрак | D139: гор.блюдо | E139: Каша молочная кукурузная с творогом | F139: 200 | G139: 6.84 | H139: 7.63 | I139: 30.28 | J139: 217.15 | K139: №653 | L139: 126.66
D141: гор.напиток | E141: Чай с сахаром и лимоном | F141: 200 | G141: 0.15 | H141: 0.04 | I141: 10.82 | J141: 44.22 | K141: №301
D142: хлеб | E142: Бутерброд с сыром и маслом 35/10/5 | F142: 50 | G142: 5.13 | H142: 6.93 | I142: 16.98 | J142: 151.7 | K142: №380
D143: фрукты
D144: хлеб | E144: Хлеб пшеничный | F144: 50 | G144: 3.83 | H144: 0.49 | I144: 23.43 | J144: 113.98 | K144: №6
D146: итого | F146: =SUM(F139:F145) -> 500 | G146: =SUM(G139:G145) -> 15.95 | H146: 15.09 | I146: 81.51 | J146: 527.05 | L146: =SUM(L139:L145) -> 126.66
A147: =A139 -> 2 | B147: =B139 -> 2 | C147: Обед | D147: закуска
D148: 1 блюдо
D149: 2 блюдо
D150: гарнир
D151: напиток
D152: хлеб бел.
D153: хлеб черн.
D156: итого | F156: =SUM(F147:F155) -> 0 | G156: =SUM(G147:G155) -> 0 | H156: 0 | I156: 0 | J156: 0 | L156: =SUM(L147:L155) -> 0
A157: =A139 -> 2 | B157: =B139 -> 2 | C157: Итого за день: | F157: =F146+F156 -> 500 | G157: =G146+G156 -> 15.95 | H157: 15.09 | I157: 81.51 | J157: 527.05 | L157: 126.66
A158: 2 | B158: 3 | C158: Завтрак | D158: гор.блюдо | E158: Вареники с картофелем со сливочным маслом | F158: 200 | G158: 14.46 | H158: 17.78 | I158: 53.47 | J158: 431.74 | K158: №513 | L158: 124.66
D159: закуска | E159: Помидор соленый | F159: 100 | G159: 1.07 | H159: 0.1 | I159: 1.55 | J159: 11.38 | K159: №27
D160: гор.напиток | E160: Чай с сахаром каркаде | F160: 200 | G160: 0.01 | H160: 0 | I160: 10.71 | J160: 42.81 | K160: №241
D161: хлеб | E161: Хлеб пшеничный | F161: 50 | G161: 3.83 | H161: 0.49 | I161: 23.43 | J161: 113.98 | K161: №6
D162: фрукты
D165: итого | F165: =SUM(F158:F164) -> 550 | G165: =SUM(G158:G164) -> 19.37 | H165: 18.37 | I165: 89.16 | J165: 599.91 | L165: =SUM(L158:L164) -> 124.66
A166: =A158 -> 2 | B166: =B158 -> 3 | C166: Обед | D166: закуска
D167: 1 блюдо
D168: 2 блюдо
D169: гарнир
D170: напиток
D171: хлеб бел.
D172: хлеб черн.
D175: итого | F175: =SUM(F166:F174) -> 0 | G175: =SUM(G166:G174) -> 0 | H175: 0 | I175: 0 | J175: 0 | L175: =SUM(L166:L174) -> 0
A176: =A158 -> 2 | B176: =B158 -> 3 | C176: Итого за день: | F176: =F165+F175 -> 550 | G176: =G165+G175 -> 19.37 | H176: 18.37 | I176: 89.16 | J176: 599.91 | L176: 124.66
A177: 2 | B177: 4 | C177: Завтрак | D177: гор.блюдо | E177: Котлета рыбная (минтай) | F177: 90 | G177: 10.7 | H177: 9.18 | I177: 12.64 | J177: 175.98 | K177: №77 | L177: 124.66
D178: гор.блюдо | E178: Макаронные изделия отварные | F178: 150 | G178: 5.56 | H178: 2.91 | I178: 25.87 | J178: 151.91 | K178: №129
D179: гор.напиток | E179: Чай с сахаром | F179: 200 | G179: 0.1 | H179: 0.03 | I179: 10.67 | J179: 42.57 | K179: №302
D180: хлеб | E180: Хлеб пшеничный | F180: 20 | G180: 1.58 | H180: 0.2 | I180: 9.66 | J180: 47.3 | K180: №6
D181: фрукты
D182: напиток | E182: Сок/нектар в ассортименте | F182: 200 | G182: 0.97 | H182: 0.19 | I182: 19.59 | J182: 83.42 | K182: №343
D183: конд.изд | E183: Печенье | F183: 20 | G183: 1.16 | H183: 3.69 | I183: 8.38 | J183: 71.37 | K183: №473
D184: итого | F184: =SUM(F177:F183) -> 680 | G184: =SUM(G177:G183) -> 20.07 | H184: 16.2 | I184: 86.81 | J184: 572.55 | L184: =SUM(L177:L183) -> 124.66
A185: =A177 -> 2 | B185: =B177 -> 4 | C185: Обед | D185: закуска
D186: 1 блюдо
D187: 2 блюдо
D188: гарнир
D189: напиток
D190: хлеб бел.
D191: хлеб черн.
D194: итого | F194: =SUM(F185:F193) -> 0 | G194: =SUM(G185:G193) -> 0 | H194: 0 | I194: 0 | J194: 0 | L194: =SUM(L185:L193) -> 0
A195: =A177 -> 2 | B195: =B177 -> 4 | C195: Итого за день: | F195: =F184+F194 -> 680 | G195: =G184+G194 -> 20.07 | H195: 16.2 | I195: 86.81 | J195: 572.55 | L195: 124.66
A196: 2 | B196: 5 | C196: Завтрак | D196: гор.блюдо | E196: Каша молочная из риса и пшена Дружба с маслом | F196: 200 | G196: 4.18 | H196: 3.56 | I196: 22.76 | J196: 139.8 | K196: №103 | L196: 124.66
D197: гор.блюдо | E197: Блинчики с молоком цельным сгущенным с сахаром | F197: 90 | G197: 8.49 | H197: 12.39 | I197: 30.41 | J197: 267.11 | K197: №387
D198: гор.напиток | E198: Чай с сахаром и лимоном | F198: 200 | G198: 0.15 | H198: 0.04 | I198: 10.82 | J198: 44.22 | K198: №301
D199: хлеб | E199: Хлеб пшеничный | F199: 40 | G199: 3.16 | H199: 0.4 | I199: 19.32 | J199: 94 | K199: №6
D200: фрукты
D203: итого | F203: =SUM(F196:F202) -> 530 | G203: =SUM(G196:G202) -> 15.98 | H203: 16.39 | I203: 83.31 | J203: 545.13 | L203: =SUM(L196:L202) -> 124.66
A204: =A196 -> 2 | B204: =B196 -> 5 | C204: Обед | D204: закуска
D205: 1 блюдо
D206: 2 блюдо
D207: гарнир
D208: напиток
D209: хлеб бел.
D210: хлеб черн.
D213: итого | F213: =SUM(F204:F212) -> 0 | G213: =SUM(G204:G212) -> 0 | H213: 0 | I213: 0 | J213: 0 | L213: =SUM(L204:L212) -> 0
A214: =A196 -> 2 | B214: =B196 -> 5 | C214: Итого за день: | F214: =F203+F213 -> 530 | G214: =G203+G213 -> 15.98 | H214: 16.39 | I214: 83.31 | J214: 545.13 | L214: 124.66
C215: Среднее значение за период: | F215: =(F43+F62+F81+F100+F119+F138+F157+F176+F195+F214)/(IF(F43=0,0,1)+IF(F62=0,0,1)+IF(F81=0,0,1)+IF(F100=0,0,1)+IF(F119=0,0,1)+IF(F138=0,0,1)+IF(F157=0,0,1)+IF(F176=0,0,1)+IF(F195=0,0,1)+IF(F214=0,0,1)) -> 556.6666667 | G215: =(G43+G62+G81+G100+G119+G138+G157+G176+G195+G214)/(IF(G43=0,0,1)+IF(G62=0,0,1)+IF(G81=0,0,1)+IF(G100=0,0,1)+IF(G119=0,0,1)+IF(G138=0,0,1)+IF(G157=0,0,1)+IF(G176=0,0,1)+IF(G195=0,0,1)+IF(G214=0,0,1)) -> 18.70777778 | H215: 17.30222222 | I215: 79.69555556 | J215: 550.1322222 | L215: =(L43+L62+L81+L100+L119+L138+L157+L176+L195+L214)/(IF(L43=0,0,1)+IF(L62=0,0,1)+IF(L81=0,0,1)+IF(L100=0,0,1)+IF(L119=0,0,1)+IF(L138=0,0,1)+IF(L157=0,0,1)+IF(L176=0,0,1)+IF(L195=0,0,1)+IF(L214=0,0,1)) -> 124.8822222
D217: гор.напиток
D218: хлеб
D219: фрукты
D222: итого | F222: =SUM(F215:F221) -> 556.6666667 | G222: =SUM(G215:G221) -> 18.70777778 | H222: 17.30222222 | I222: 79.69555556 | J222: 550.1322222 | L222: =SUM(L215:L221) -> 124.8822222
A223: =A215 -> 0 | B223: =B215 -> 0 | C223: Обед | D223: закуска
D224: 1 блюдо
D225: 2 блюдо
D226: гарнир
D227: напиток
D228: хлеб бел.
D229: хлеб черн.
D232: итого | F232: =SUM(F223:F231) -> 0 | G232: =SUM(G223:G231) -> 0 | H232: 0 | I232: 0 | J232: 0 | L232: =SUM(L223:L231) -> 0
A233: =A215 -> 0 | B233: =B215 -> 0 | C233: Итого за день: | F233: =F222+F232 -> 556.6666667 | G233: =G222+G232 -> 18.70777778 | H233: 17.30222222 | I233: 79.69555556 | J233: 550.1322222 | L233: =L222+L232 -> 124.8822222
C234: Среднее значение за период: | F234: =(F24+F43+F62+F81+F100+F119+F138+F157+F176+F195+F214+F233)/(IF(F24=0,0,1)+IF(F43=0,0,1)+IF(F62=0,0,1)+IF(F81=0,0,1)+IF(F100=0,0,1)+IF(F119=0,0,1)+IF(F138=0,0,1)+IF(F157=0,0,1)+IF(F176=0,0,1)+IF(F195=0,0,1)+IF(F214=0,0,1)+IF(F233=0,0,1)) -> 554.2424242 | G234: =(G24+G43+G62+G81+G100+G119+G138+G157+G176+G195+G214+G233)/(IF(G24=0,0,1)+IF(G43=0,0,1)+IF(G62=0,0,1)+IF(G81=0,0,1)+IF(G100=0,0,1)+IF(G119=0,0,1)+IF(G138=0,0,1)+IF(G157=0,0,1)+IF(G176=0,0,1)+IF(G195=0,0,1)+IF(G214=0,0,1)+IF(G233=0,0,1)) -> 18.45525253 | H234: 17.21838384 | I234: =(I24+I43+I62+I81+I100+I119+I138+I157+I176+I195+I214+I233)/(IF(I24=0,0,1)+IF(I43=0,0,1)+IF(I62=0,0,1)+IF(I81=0,0,1)+IF(I100=0,0,1)+IF(I119=0,0,1)+IF(I138=0,0,1)+IF(I157=0,0,1)+IF(I176=0,0,1)+IF(I195=0,0,1)+IF(I214=0,0,1)+IF(I233=0,0,1)) -> 80.01050505 | J234: 549.5274747 | L234: 124.8620202
